[Event "55th Rubinstein Memorial-A 2019"]
[Site "Polanica-Zdroj"]
[Date "2019.08.22"]
[Round "6.8"]
[White "Shishkin, Vadim"]
[Black "Mazalon, Mariusz"]
[Result "0-1"]
[ECO "E70"]
[WhiteElo "2445"]
[BlackElo "2012"]
[Annotator "NA"]
[PlyCount "124"]
[EventDate "2019.08.17"]
[EventType "swiss"]
[EventCountry "POL"]
[SourceTitle "playchess.com"]
[Source "ChessBase"]
[SourceQuality "1"]
[TimeControl "40/5400+30:1800+30"]

1. d4 {[%emt 0:00:00]} Nf6 {[%emt 0:00:03]} 2. c4 {[%emt 0:00:00]} g6 {[%emt 0:00:29]} 3. Nc3 {[%emt 0:00:00]} Bg7 {[%emt 0:00:21]} 4. e4 {[%emt 0:00:00]} O-O {[%emt 0:00:12]} 5. Be2 {[%emt 0:03:10]} c6 {[%emt 0:00:38]} 6. e5 {[%emt 0:08:00]} Ne8 {[%emt 0:01:22]} 7. f4 {[%emt 0:00:04]} d6 {[%emt 0:00:28]} 8. Nf3 {[%emt 0:00:04]} Nd7 {[%emt 0:02:13]} 9. O-O {[%emt 0:00:50]} Nc7 {[%emt 0:00:08]} 10. Be3 {[%emt 0:15:23]} c5 {[%emt 0:01:07]} 11. exd6 {[%emt 0:08:03]} exd6 {[%emt 0:03:26]} 12. Qd2 {[%emt 0:00:09]} Re8 {[%emt 0:23:39]} 13. Rfe1 {[%emt 0:07:11]} Qe7 {[%emt 0:13:39]} 14. Bf1 {[%emt 0:08:40]} Qf8 {[%emt 0:03:42]} 15. h3 {[%emt 0:10:28]} Nf6 {[%emt 0:04:00]} 16. g4 {[%emt 0:02:36]} b6 {[%emt 0:05:14]} 17. g5 {[%emt 0:06:34]} Nh5 {[%emt 0:02:28]} 18. Bg2 {[%emt 0:01:52]} Bb7 {[%emt 0:01:39]} 19. d5 {[%emt 0:03:11]} Ng3 {[%emt 0:04:54]} 20. Bf2 {[%emt 0:07:41]} Nf5 {[%emt 0:00:19]} 21. Nh2 {[%emt 0:00:19]} Rxe1+ {[%emt 0:04:25]} 22. Rxe1 {[%emt 0:00:04]} Re8 {[%emt 0:00:32]} 23. Ne4 {[%emt 0:00:29]} h5 {[%emt 0:00:41]} 24. gxh6 {[%emt 0:00:10]} Nxh6 {[%emt 0:00:16]} 25. Ng4 {[%emt 0:05:40]} f5 {[%emt 0:07:32]} 26. Nxh6+ {[%emt 0:00:06]} Bxh6 {[%emt 0:00:09]} 27. Ng5 {[%emt 0:00:36]} Bc8 {[%emt 0:02:43]} 28. h4 {[%emt 0:01:54]} Bd7 {[%emt 0:00:37]} 29. Bf3 {[%emt 0:01:03]} Rxe1+ {[%emt 0:03:50]} 30. Bxe1 {[%emt 0:00:48]} Qe7 {[%emt 0:01:34]} 31. h5 {[%emt 0:06:12]} Bxg5 {[%emt 0:03:22]} 32. fxg5 {[%emt 0:00:03]} gxh5 {[%emt 0:00:09]} 33. Bxh5 {[%emt 0:01:17]} f4 {[%emt 0:00:53]} 34. Bh4 {[%emt 0:01:24]} Qe5 {[%emt 0:00:30]} 35. Qe2 {[%emt 0:01:38]} Ne8 {[%emt 0:01:45]} 36. Bf3 {[%emt 0:01:16]} Kg7 {[%emt 0:02:06]} 37. Kh2 {[%emt 0:00:50]} Qxe2+ {[%emt 0:00:59]} 38. Bxe2 {[%emt 0:00:01]} Kg6 {[%emt 0:00:29]} 39. Kg2 {[%emt 0:00:18]} Ng7 {[%emt 0:04:04]} 40. Kf3 {[%emt 0:00:00]} Kh5 {[%emt 0:00:00]} 41. Be1 {[%emt 0:01:52]} Kxg5 {[%emt 0:04:15]} 42. Kf2 {[%emt 0:07:36]} Bf5 {[%emt 0:10:40]} 43. b4 {[%emt 0:01:33]} Be4 {[%emt 0:00:51]} 44. a4 {[%emt 0:01:20]} Ne8 {[%emt 0:00:39]} 45. b5 {[%emt 0:02:16]} Nf6 {[%emt 0:00:37]} 46. a5 {[%emt 0:00:14]} Nd7 {[%emt 0:00:34]} 47. a6 {[%emt 0:00:58]} Kf5 {[%emt 0:01:00]} 48. Bf1 {[%emt 0:06:03]} Kg4 {[%emt 0:03:37]} 49. Be2+ {[%emt 0:00:08]} Kg5 {[%emt 0:00:24]} 50. Bc3 {[%emt 0:05:57]} Bc2 {[%emt 0:00:46]} 51. Bf1 {[%emt 0:07:59]} Bd1 {[%emt 0:02:30]} 52. Bg7 {[%emt 0:00:49]} Bg4 {[%emt 0:04:17]} 53. Bc3 {[%emt 0:00:26]} Nf6 {[%emt 0:02:23]} 54. Bd3 {[%emt 0:00:55]} Bf5 {[%emt 0:00:49]} 55. Bxf5 {[%emt 0:00:21]} Kxf5 {[%emt 0:00:03]} 56. Ke2 {[%emt 0:00:27]} Nd7 {[%emt 0:02:11]} 57. Bg7 {[%emt 0:00:05]} Ke4 {[%emt 0:00:12]} 58. Bh6 {[%emt 0:01:18]} Ne5 {[%emt 0:00:36]} 59. Bg5 {[%emt 0:00:25]} Nxc4 {[%emt 0:00:21]} 60. Bd8 {[%emt 0:00:10]} Kxd5 {[%emt 0:00:48]} 61. Bc7 {[%emt 0:00:07]} Na3 {[%emt 0:00:41]} 62. Bxb6 {[%emt 0:00:06]} Nxb5 {[%emt 0:00:05]} 0-1

[Event "55th Rubinstein Memorial-A 2019"]
[Site "Polanica-Zdroj"]
[Date "2019.08.22"]
[Round "6.9"]
[White "Niedbala, Bartlomiej"]
[Black "Mikhaletz, Lubomir"]
[Result "0-1"]
[ECO "B92"]
[WhiteElo "2169"]
[BlackElo "2412"]
[Annotator "NA"]
[PlyCount "128"]
[EventDate "2019.08.17"]
[EventType "swiss"]
[EventCountry "POL"]
[SourceTitle "playchess.com"]
[Source "ChessBase"]
[SourceQuality "1"]
[TimeControl "40/5400+30:1800+30"]

1. e4 {[%emt 0:00:00]} c5 {[%emt 0:01:15]} 2. Nf3 {[%emt 0:00:17]} d6 {[%emt 0:00:17]} 3. d4 {[%emt 0:00:08]} Nf6 {[%emt 0:00:24]} 4. Nc3 {[%emt 0:00:06]} cxd4 {[%emt 0:00:10]} 5. Nxd4 {[%emt 0:00:07]} a6 {[%emt 0:00:59]} 6. Be2 {[%emt 0:00:07]} e5 {[%emt 0:03:39]} 7. Nf3 {[%emt 0:00:49]} Be7 {[%emt 0:02:11]} 8. Bg5 {[%emt 0:00:05]} Be6 {[%emt 0:00:10]} 9. Bxf6 {[%emt 0:00:44]} Bxf6 {[%emt 0:00:19]} 10. Nd5 {[%emt 0:03:14]} Nd7 {[%emt 0:02:42]} 11. O-O {[%emt 0:05:26]} O-O {[%emt 0:00:13]} 12. Bc4 {[%emt 0:10:48]} Rc8 {[%emt 0:02:15]} 13. Qe2 {[%emt 0:06:34]} Nb6 {[%emt 0:08:11]} 14. Nxb6 {[%emt 0:02:36]} Qxb6 {[%emt 0:00:03]} 15. Bxe6 {[%emt 0:01:45]} fxe6 {[%emt 0:00:03]} 16. c3 {[%emt 0:00:07]} Be7 {[%emt 0:04:41]} 17. Rad1 {[%emt 0:08:45]} Qa5 {[%emt 0:01:54]} 18. a3 {[%emt 0:06:25]} Qa4 {[%emt 0:00:19]} 19. g3 {[%emt 0:11:44]} b5 {[%emt 0:07:44]} 20. Ne1 {[%emt 0:01:20]} a5 {[%emt 0:02:59]} 21. Nd3 {[%emt 0:01:14]} Qc4 {[%emt 0:00:52]} 22. Rde1 {[%emt 0:00:43]} Rf6 {[%emt 0:10:57]} 23. Kg2 {[%emt 0:01:00]} Rcf8 {[%emt 0:00:58]} 24. f3 {[%emt 0:05:54]} Bd8 {[%emt 0:02:27]} 25. Qe3 {[%emt 0:02:49]} Qc6 {[%emt 0:00:41]} 26. f4 {[%emt 0:05:07]} Bb6 {[%emt 0:00:55]} 27. Qe2 {[%emt 0:00:24]} exf4 {[%emt 0:03:12]} 28. Rxf4 {[%emt 0:00:30]} e5 {[%emt 0:10:50]} 29. Rxf6 {[%emt 0:00:23]} Rxf6 {[%emt 0:00:01]} 30. Rf1 {[%emt 0:01:58]} Rxf1 {[%emt 0:03:16]} 31. Kxf1 {[%emt 0:00:09]} Qc4 {[%emt 0:00:40]} 32. Ke1 {[%emt 0:03:21]} h5 {[%emt 0:03:54]} 33. Nc1 {[%emt 0:00:58]} g6 {[%emt 0:03:58]} 34. Qxc4+ {[%emt 0:02:36]} bxc4 {[%emt 0:00:02]} 35. Ke2 {[%emt 0:00:34]} Kf7 {[%emt 0:02:38]} 36. a4 {[%emt 0:01:08]} Bg1 {[%emt 0:05:36]} 37. Kf3 {[%emt 0:06:31]} g5 {[%emt 0:02:49]} 38. h3 {[%emt 0:02:34]} Bc5 {[%emt 0:00:16]} 39. g4 {[%emt 0:00:00]} h4 {[%emt 0:00:00]} 40. Na2 {[%emt 0:00:00]} Ke6 {[%emt 0:00:00]} 41. Nc1 {[%emt 0:11:10]} Kd7 {[%emt 0:04:37]} 42. Ne2 {[%emt 0:02:26]} Kc6 {[%emt 0:00:21]} 43. Nc1 {[%emt 0:03:08]} Bg1 {[%emt 0:06:40]} 44. b4 {[%emt 0:14:07]} Bb6 {[%emt 0:15:56]} 45. Ne2 {[%emt 0:04:31]} d5 {[%emt 0:01:39]} 46. b5+ {[%emt 0:06:33]} Kd6 {[%emt 0:00:07]} 47. exd5 {[%emt 0:01:06]} Kxd5 {[%emt 0:00:07]} 48. Nc1 {[%emt 0:00:09]} Bc5 {[%emt 0:02:32]} 49. Ne2 {[%emt 0:00:37]} e4+ {[%emt 0:05:27]} 50. Kg2 {[%emt 0:00:00]} Ke5 {[%emt 0:01:11]} 51. Nd4 {[%emt 0:02:11]} e3 {[%emt 0:02:12]} 52. Kf3 {[%emt 0:00:29]} Bxd4 {[%emt 0:00:24]} 53. cxd4+ {[%emt 0:00:01]} Kxd4 {[%emt 0:00:09]} 54. b6 {[%emt 0:00:04]} Kd3 {[%emt 0:00:08]} 55. b7 {[%emt 0:00:01]} e2 {[%emt 0:00:08]} 56. b8=Q {[%emt 0:00:04]} e1=Q {[%emt 0:00:16]} 57. Qd8+ {[%emt 0:02:14]} Kc2 {[%emt 0:00:07]} 58. Qxg5 {[%emt 0:00:36]} Qf1+ {[%emt 0:01:38]} 59. Ke4 {[%emt 0:00:09]} Qxh3 {[%emt 0:00:02]} 60. Kd5 {[%emt 0:00:46]} Qd3+ {[%emt 0:01:23]} 61. Kc5 {[%emt 0:00:25]} h3 {[%emt 0:00:48]} 62. Qh4 {[%emt 0:00:30]} c3 {[%emt 0:01:02]} 63. g5 {[%emt 0:00:26]} Kb3 {[%emt 0:00:38]} 64. g6 {[%emt 0:00:27]} c2 {[%emt 0:00:13] Kd4} 0-1

[Event "55th Rubinstein Memorial-A 2019"]
[Site "Polanica-Zdroj"]
[Date "2019.08.22"]
[Round "6.10"]
[White "Vanduyfhuys, Daria"]
[Black "Mis, Mieszko"]
[Result "0-1"]
[ECO "E11"]
[WhiteElo "2160"]
[BlackElo "2296"]
[Annotator "NA"]
[PlyCount "76"]
[EventDate "2019.08.17"]
[EventType "swiss"]
[EventCountry "POL"]
[SourceTitle "playchess.com"]
[Source "ChessBase"]
[SourceQuality "1"]
[TimeControl "40/5400+30:1800+30"]

1. d4 {[%emt 0:00:00]} Nf6 {[%emt 0:00:00]} 2. c4 {[%emt 0:00:00]} e6 {[%emt 0:00:00]} 3. Nf3 {[%emt 0:00:00]} Bb4+ {[%emt 0:00:36]} 4. Bd2 {[%emt 0:00:00]} c5 {[%emt 0:00:30]} 5. Nc3 {[%emt 0:07:38]} cxd4 {[%emt 0:08:24]} 6. Nxd4 {[%emt 0:00:11]} O-O {[%emt 0:00:58]} 7. e3 {[%emt 0:06:30]} Nc6 {[%emt 0:04:31]} 8. Nc2 {[%emt 0:04:07]} Bxc3 {[%emt 0:13:14]} 9. Bxc3 {[%emt 0:00:07]} Ne4 {[%emt 0:00:05]} 10. Qd3 {[%emt 0:04:57]} d5 {[%emt 0:01:14]} 11. Be2 {[%emt 0:05:51]} Qh4 {[%emt 0:09:00]} 12. O-O {[%emt 0:03:33]} Nc5 {[%emt 0:05:07]} 13. Qd2 {[%emt 0:02:25]} dxc4 {[%emt 0:04:10]} 14. Na3 {[%emt 0:04:27]} Rd8 {[%emt 0:10:54]} 15. Qc2 {[%emt 0:00:23]} e5 {[%emt 0:04:37]} 16. Nxc4 {[%emt 0:02:48]} Qg5 {[%emt 0:01:39]} 17. Bxe5 {[%emt 0:26:46]} Nxe5 {[%emt 0:00:51]} 18. f4 {[%emt 0:15:51]} Qg6 {[%emt 0:00:09]} 19. f5 {[%emt 0:00:04]} Qf6 {[%emt 0:00:52]} 20. Rad1 {[%emt 0:02:21]} Rxd1 {[%emt 0:00:51]} 21. Qxd1 {[%emt 0:00:28]} Nxc4 {[%emt 0:03:29]} 22. Bxc4 {[%emt 0:00:04]} b5 {[%emt 0:01:54]} 23. Bxf7+ {[%emt 0:01:03]} Kh8 {[%emt 0:05:09]} 24. Bd5 {[%emt 0:00:26]} Bb7 {[%emt 0:03:31]} 25. Bxb7 {[%emt 0:00:14]} Nxb7 {[%emt 0:00:10]} 26. Qd5 {[%emt 0:00:12]} Qe7 {[%emt 0:00:30]} 27. Qd4 {[%emt 0:05:12]} Qd6 {[%emt 0:02:10]} 28. Qe4 {[%emt 0:01:20]} Rb8 {[%emt 0:01:36]} 29. Rc1 {[%emt 0:01:06]} Qd2 {[%emt 0:03:19]} 30. Rf1 {[%emt 0:01:13]} Nd6 {[%emt 0:00:19]} 31. Qf3 {[%emt 0:01:23]} Qxb2 {[%emt 0:01:26]} 32. Rd1 {[%emt 0:02:22]} Qf6 {[%emt 0:01:22]} 33. Qf4 {[%emt 0:01:27]} Rd8 {[%emt 0:00:34]} 34. e4 {[%emt 0:00:22]} Nf7 {[%emt 0:00:40]} 35. Rb1 {[%emt 0:01:26]} Qd4+ {[%emt 0:00:11]} 36. Qf2 {[%emt 0:00:38]} a6 {[%emt 0:01:16]} 37. Re1 {[%emt 0:00:30]} Ne5 {[%emt 0:00:23]} 38. Kf1 {[%emt 0:00:45]} Qxf2+ {[%emt 0:00:06]} 0-1

[Event "55th Rubinstein Memorial-A 2019"]
[Site "Polanica-Zdroj"]
[Date "2019.08.22"]
[Round "6.11"]
[White "Praczukowski, Stanislaw"]
[Black "Jaskolka, Tomasz"]
[Result "1/2-1/2"]
[ECO "D82"]
[WhiteElo "2126"]
[BlackElo "2227"]
[Annotator "NA"]
[PlyCount "60"]
[EventDate "2019.08.17"]
[EventType "swiss"]
[EventCountry "POL"]
[SourceTitle "playchess.com"]
[Source "ChessBase"]
[SourceQuality "1"]
[TimeControl "40/5400+30:1800+30"]

1. d4 {[%emt 0:00:00]} Nf6 {[%emt 0:00:00]} 2. c4 {[%emt 0:00:00]} g6 {[%emt 0:00:03]} 3. Nc3 {[%emt 0:00:08]} d5 {[%emt 0:00:18]} 4. Bf4 {[%emt 0:00:11]} Bg7 {[%emt 0:00:16]} 5. Rc1 {[%emt 0:00:11]} c6 {[%emt 0:00:25]} 6. e3 {[%emt 0:00:35]} O-O {[%emt 0:00:14]} 7. Nf3 {[%emt 0:00:15]} Qa5 {[%emt 0:19:20]} 8. Bd3 {[%emt 0:05:48]} dxc4 {[%emt 0:04:52]} 9. Bxc4 {[%emt 0:00:07]} Nd5 {[%emt 0:16:10]} 10. Be5 {[%emt 0:03:18]} Nxc3 {[%emt 0:02:39]} 11. Rxc3 {[%emt 0:02:05]} Nd7 {[%emt 0:01:17]} 12. Bxg7 {[%emt 0:00:34]} Kxg7 {[%emt 0:00:04]} 13. O-O {[%emt 0:00:55]} Nb6 {[%emt 0:00:44]} 14. Bb3 {[%emt 0:00:55]} Bg4 {[%emt 0:14:07]} 15. h3 {[%emt 0:04:40]} Bxf3 {[%emt 0:02:11]} 16. Qxf3 {[%emt 0:00:07]} Qf5 {[%emt 0:01:19]} 17. Qxf5 {[%emt 0:11:49]} gxf5 {[%emt 0:00:06]} 18. a4 {[%emt 0:00:15]} Nc8 {[%emt 0:10:39]} 19. d5 {[%emt 0:03:09]} Nd6 {[%emt 0:05:58]} 20. dxc6 {[%emt 0:02:19]} bxc6 {[%emt 0:00:03]} 21. Rxc6 {[%emt 0:03:35]} Rab8 {[%emt 0:07:16]} 22. Bd5 {[%emt 0:03:52]} Rxb2 {[%emt 0:00:05]} 23. Rc7 {[%emt 0:00:35]} Rd2 {[%emt 0:00:18]} 24. Bf3 {[%emt 0:00:48]} Kf6 {[%emt 0:01:28]} 25. Rxa7 {[%emt 0:01:27]} Rb8 {[%emt 0:01:09]} 26. a5 {[%emt 0:09:10]} Ra2 {[%emt 0:03:35]} 27. Bd5 {[%emt 0:09:15]} Rd2 {[%emt 0:00:07]} 28. Bf3 {[%emt 0:00:36]} Ra2 {[%emt 0:00:03]} 29. Bd5 {[%emt 0:18:10]} Rd2 {[%emt 0:00:05]} 30. Bf3 {[%emt 0:00:12]} Ra2 {[%emt 0:00:05]} 1/2-1/2

[Event "55th Rubinstein Memorial-A 2019"]
[Site "Polanica-Zdroj"]
[Date "2019.08.22"]
[Round "6.12"]
[White "Kaczmarek, Arkadiusz"]
[Black "Lukasiewicz, Krzysztof"]
[Result "1/2-1/2"]
[ECO "D38"]
[WhiteElo "1986"]
[BlackElo "2185"]
[Annotator "NA"]
[PlyCount "68"]
[EventDate "2019.08.17"]
[EventType "swiss"]
[EventCountry "POL"]
[SourceTitle "playchess.com"]
[Source "ChessBase"]
[SourceQuality "1"]
[TimeControl "40/5400+30:1800+30"]

1. d4 {[%emt 0:00:00]} Nf6 {[%emt 0:00:00]} 2. c4 {[%emt 0:00:00]} e6 {[%emt 0:00:00]} 3. Nf3 {[%emt 0:00:00]} d5 {[%emt 0:00:00]} 4. Nc3 {[%emt 0:00:25]} Bb4 {[%emt 0:01:38]} 5. Qb3 {[%emt 0:03:11]} c5 {[%emt 0:05:28]} 6. cxd5 {[%emt 0:00:18]} exd5 {[%emt 0:04:38]} 7. dxc5 {[%emt 0:00:22]} Nc6 {[%emt 0:04:55]} 8. Bg5 {[%emt 0:01:16]} h6 {[%emt 0:11:59]} 9. Bxf6 {[%emt 0:12:46]} Qxf6 {[%emt 0:02:14]} 10. O-O-O {[%emt 0:00:26]} Bxc3 {[%emt 0:04:19]} 11. Qxc3 {[%emt 0:00:19]} Qxc3+ {[%emt 0:00:10]} 12. bxc3 {[%emt 0:00:13]} Be6 {[%emt 0:00:05]} 13. Nd4 {[%emt 0:09:08]} Rc8 {[%emt 0:07:18]} 14. Nb3 {[%emt 0:13:06]} Ne5 {[%emt 0:06:12]} 15. e3 {[%emt 0:00:47]} O-O {[%emt 0:02:48]} 16. Bb5 {[%emt 0:14:22]} a6 {[%emt 0:07:23]} 17. Be2 {[%emt 0:00:20]} Nd7 {[%emt 0:01:53]} 18. Rd4 {[%emt 0:08:01]} Nxc5 {[%emt 0:03:31]} 19. Nxc5 {[%emt 0:00:38]} Rxc5 {[%emt 0:00:03]} 20. Kb2 {[%emt 0:00:33]} Rfc8 {[%emt 0:01:56]} 21. Rc1 {[%emt 0:00:33]} Kf8 {[%emt 0:00:33]} 22. Bd3 {[%emt 0:07:22]} Ke7 {[%emt 0:02:28]} 23. Rc2 {[%emt 0:01:11]} R8c7 {[%emt 0:02:09]} 24. Rc1 {[%emt 0:00:30]} Bd7 {[%emt 0:03:16]} 25. a4 {[%emt 0:06:17]} b5 {[%emt 0:09:36]} 26. a5 {[%emt 0:02:24]} Be6 {[%emt 0:01:24]} 27. Rc2 {[%emt 0:00:36]} Kf6 {[%emt 0:01:58]} 28. Rb4 {[%emt 0:01:31]} Ke5 {[%emt 0:02:20]} 29. Rc1 {[%emt 0:06:48]} Bf5 {[%emt 0:02:11]} 30. Be2 {[%emt 0:00:29]} Be4 {[%emt 0:02:17]} 31. g3 {[%emt 0:00:46]} R7c6 {[%emt 0:03:32]} 32. f3 {[%emt 0:03:28]} Bg6 {[%emt 0:00:29]} 33. Bf1 {[%emt 0:01:01]} Ke6 {[%emt 0:01:56]} 34. Kb3 {[%emt 0:02:31]} Ke7 {[%emt 0:02:39]} 1/2-1/2

[Event "55th Rubinstein Memorial-A 2019"]
[Site "Polanica-Zdroj"]
[Date "2019.08.22"]
[Round "6.13"]
[White "Psyk, Radoslaw"]
[Black "Rogacewicz, Mikolaj"]
[Result "1-0"]
[ECO "C06"]
[WhiteElo "2326"]
[BlackElo "1925"]
[Annotator "NA"]
[PlyCount "123"]
[EventDate "2019.08.17"]
[EventType "swiss"]
[EventCountry "POL"]
[SourceTitle "playchess.com"]
[Source "ChessBase"]
[SourceQuality "1"]
[TimeControl "40/5400+30:1800+30"]

1. e4 {[%emt 0:06:36]} e6 {[%emt 0:00:00]} 2. d4 {[%emt 0:00:08]} d5 {[%emt 0:00:00]} 3. Nd2 {[%emt 0:00:01]} Nf6 {[%emt 0:00:02]} 4. e5 {[%emt 0:00:04]} Nfd7 {[%emt 0:00:06]} 5. Bd3 {[%emt 0:00:03]} c5 {[%emt 0:00:08]} 6. c3 {[%emt 0:00:02]} cxd4 {[%emt 0:00:09]} 7. cxd4 {[%emt 0:00:13]} Nc6 {[%emt 0:00:04]} 8. Ne2 {[%emt 0:00:07]} f6 {[%emt 0:00:09]} 9. exf6 {[%emt 0:00:18]} Nxf6 {[%emt 0:00:07]} 10. O-O {[%emt 0:00:07]} Bd6 {[%emt 0:00:06]} 11. Nf3 {[%emt 0:00:05]} Qc7 {[%emt 0:00:04]} 12. Bg5 {[%emt 0:00:24]} O-O {[%emt 0:00:09]} 13. Nc3 {[%emt 0:00:25]} a6 {[%emt 0:00:45]} 14. Bh4 {[%emt 0:00:16]} g6 {[%emt 0:13:40]} 15. Bg3 {[%emt 0:03:53]} Nh5 {[%emt 0:08:25]} 16. Bxd6 {[%emt 0:02:24]} Qxd6 {[%emt 0:00:12]} 17. Re1 {[%emt 0:01:34]} Bd7 {[%emt 0:07:07]} 18. Ne5 {[%emt 0:17:58]} Rf6 {[%emt 0:08:40]} 19. g3 {[%emt 0:06:23]} Re8 {[%emt 0:13:38]} 20. Qg4 {[%emt 0:06:20]} Kg7 {[%emt 0:16:00]} 21. Re2 {[%emt 0:04:02]} Ref8 {[%emt 0:04:56]} 22. Rae1 {[%emt 0:01:09]} b5 {[%emt 0:05:19]} 23. Nb1 {[%emt 0:08:49]} Nb4 {[%emt 0:06:09]} 24. Qg5 {[%emt 0:12:24]} Bc8 {[%emt 0:05:40]} 25. a3 {[%emt 0:03:07]} Nxd3 {[%emt 0:02:00]} 26. Nxd3 {[%emt 0:00:57]} Rf5 {[%emt 0:03:46]} 27. Qc1 {[%emt 0:03:40]} R5f7 {[%emt 0:01:42]} 28. Ne5 {[%emt 0:02:15]} Rc7 {[%emt 0:00:51]} 29. Rc2 {[%emt 0:00:01]} Rxc2 {[%emt 0:00:31]} 30. Qxc2 {[%emt 0:00:02]} Nf6 {[%emt 0:01:15]} 31. Nd2 {[%emt 0:01:54]} Bd7 {[%emt 0:00:32]} 32. Nb3 {[%emt 0:01:07]} Rc8 {[%emt 0:00:46]} 33. Nc5 {[%emt 0:00:15]} Be8 {[%emt 0:00:45]} 34. Qd2 {[%emt 0:01:25]} Nd7 {[%emt 0:01:10]} 35. Ncxd7 {[%emt 0:05:46]} Bxd7 {[%emt 0:00:05]} 36. h4 {[%emt 0:00:06]} Be8 {[%emt 0:01:25]} 37. Ng4 {[%emt 0:02:16]} Bf7 {[%emt 0:01:20]} 38. Qh6+ {[%emt 0:00:38]} Kh8 {[%emt 0:00:04]} 39. Qg5 {[%emt 0:06:44]} Qf8 {[%emt 0:00:45]} 40. Ne5 {[%emt 0:00:00]} Be8 {[%emt 0:00:00]} 41. Re3 {[%emt 0:03:00]} Qg7 {[%emt 0:13:20]} 42. Rf3 {[%emt 0:00:32]} Rc7 {[%emt 0:00:41]} 43. Qd8 {[%emt 0:01:31]} Qe7 {[%emt 0:00:49]} 44. Rf8+ {[%emt 0:00:44]} Qxf8 {[%emt 0:00:24]} 45. Qxc7 {[%emt 0:00:01]} b4 {[%emt 0:09:48]} 46. axb4 {[%emt 0:01:07]} Qxb4 {[%emt 0:01:54]} 47. Qc8 {[%emt 0:00:03]} Qe7 {[%emt 0:00:54]} 48. Qxa6 {[%emt 0:00:27]} Kg7 {[%emt 0:01:10]} 49. Qb6 {[%emt 0:00:17]} h5 {[%emt 0:02:51]} 50. Kg2 {[%emt 0:00:55]} Kf6 {[%emt 0:01:52]} 51. Qb8 {[%emt 0:00:53]} g5 {[%emt 0:00:49]} 52. Nf3 {[%emt 0:01:03]} gxh4 {[%emt 0:00:57]} 53. Qe5+ {[%emt 0:00:33]} Kg6 {[%emt 0:00:37]} 54. Nxh4+ {[%emt 0:00:01]} Kh7 {[%emt 0:00:21]} 55. Nf3 {[%emt 0:00:22]} Bf7 {[%emt 0:00:41]} 56. Qf4 {[%emt 0:00:54]} Bg6 {[%emt 0:00:38]} 57. Ng5+ {[%emt 0:01:04]} Kg8 {[%emt 0:00:07]} 58. Qb8+ {[%emt 0:00:03]} Be8 {[%emt 0:00:33]} 59. Qe5 {[%emt 0:00:06]} Bf7 {[%emt 0:00:38]} 60. Kh3 {[%emt 0:02:47]} Bg6 {[%emt 0:01:15]} 61. Nxe6 {[%emt 0:01:00]} Bf5+ {[%emt 0:00:59]} 62. Qxf5 {[%emt 0:00:07]} 1-0

[Event "55th Rubinstein Memorial-A 2019"]
[Site "Polanica-Zdroj"]
[Date "2019.08.22"]
[Round "6.14"]
[White "Lapaj, Mateusz"]
[Black "Hetzer, Volkhard"]
[Result "1-0"]
[ECO "D15"]
[WhiteElo "2233"]
[BlackElo "1931"]
[Annotator "NA"]
[PlyCount "65"]
[EventDate "2019.08.17"]
[EventType "swiss"]
[EventCountry "POL"]
[SourceTitle "playchess.com"]
[Source "ChessBase"]
[SourceQuality "1"]
[TimeControl "40/5400+30:1800+30"]

1. d4 {[%emt 0:00:00]} d5 {[%emt 0:00:00]} 2. Nf3 {[%emt 0:00:00]} Nf6 {[%emt 0:00:00]} 3. c4 {[%emt 0:00:00]} c6 {[%emt 0:00:00]} 4. Nc3 {[%emt 0:00:13]} a6 {[%emt 0:01:27]} 5. c5 {[%emt 0:22:19]} Nbd7 6. Bf4 {[%emt 0:02:25]} Nh5 {[%emt 0:01:53]} 7. e3 {[%emt 0:02:24]} Nxf4 {[%emt 0:03:12]} 8. exf4 {[%emt 0:01:15]} Nf6 {[%emt 0:01:32]} 9. Ne5 {[%emt 0:11:04]} g6 {[%emt 0:05:55]} 10. Bd3 {[%emt 0:01:59]} Bf5 {[%emt 0:02:47]} 11. Bxf5 {[%emt 0:02:32]} gxf5 {[%emt 0:00:12]} 12. O-O {[%emt 0:00:22]} Bg7 {[%emt 0:12:54]} 13. Re1 {[%emt 0:12:50]} O-O {[%emt 0:00:27]} 14. Re3 {[%emt 0:02:18]} Kh8 {[%emt 0:11:17]} 15. Rh3 {[%emt 0:00:37]} e6 {[%emt 0:04:39]} 16. Ne2 {[%emt 0:08:56]} Ne4 {[%emt 0:17:08]} 17. f3 {[%emt 0:00:10]} Nf6 {[%emt 0:02:11]} 18. Qe1 {[%emt 0:08:13]} Ne8 {[%emt 0:06:56]} 19. Kh1 {[%emt 0:01:09]} Rc8 {[%emt 0:05:46]} 20. g4 {[%emt 0:01:06]} fxg4 {[%emt 0:00:36]} 21. fxg4 {[%emt 0:00:16]} Kg8 {[%emt 0:06:18]} 22. g5 {[%emt 0:05:34]} f6 {[%emt 0:01:01]} 23. Nf3 {[%emt 0:05:26]} Rc7 {[%emt 0:07:12]} 24. Qh4 {[%emt 0:00:21]} Kf7 {[%emt 0:01:47]} 25. g6+ {[%emt 0:03:04]} Ke7 {[%emt 0:02:48]} 26. gxh7 {[%emt 0:00:02]} Kd7 {[%emt 0:00:12]} 27. Rg1 {[%emt 0:00:20]} Rh8 {[%emt 0:00:58]} 28. f5 {[%emt 0:01:06]} e5 {[%emt 0:01:13]} 29. dxe5 {[%emt 0:00:30]} fxe5 {[%emt 0:00:04]} 30. Rxg7+ {[%emt 0:00:46]} Nxg7 {[%emt 0:00:09]} 31. Nxe5+ {[%emt 0:00:25]} Kc8 {[%emt 0:00:04]} 32. Qxd8+ {[%emt 0:00:27]} Kxd8 {[%emt 0:00:08]} 33. Ng6 {[%emt 0:00:10]} 1-0